bitfinex-derivatives/quotes_BTCF0:USTF0_20241130
["timestamp","ask_amount","ask_price","bid_price","bid_amount"]
[1732931577745,0.05179119,96677.0,96676.0,0.002]
[1732931578060,0.05179119,96677.0,96657.0,0.413031]
[1732931578061,0.05171,96658.0,96657.0,0.00052]
[1732931578351,0.051706,96666.0,96647.0,0.3608]
[1732931578352,0.051716,96648.0,96647.0,0.3608]
[1732931579800,0.051721,96640.0,96639.0,0.05172]
[1732931581752,0.057721,96640.0,96639.0,0.05172]
[1732931581957,0.066721,96640.0,96639.0,0.05272]
[1732931582153,0.015,96640.0,96639.0,0.05272]
[1732931582355,0.015,96640.0,96639.0,0.001]
[1732931584058,0.006,96640.0,96638.0,0.051721]
[1732931584256,0.015,96640.0,96639.0,0.001]
[1732931584566,0.014,96640.0,96639.0,0.001]
[1732931585258,0.009,96640.0,96639.0,0.001]
[1732931585566,0.013,96640.0,96639.0,0.001]
[1732931586964,0.014,96640.0,96639.0,0.001]
[1732931587862,0.06572,96640.0,96639.0,0.001]
[1732931590371,0.06572,96640.0,96639.0,0.05272]
[1732931590964,0.014,96640.0,96639.0,0.05272]
[1732931591819,0.06572,96640.0,96639.0,0.05272]
[1732931592957,0.014,96640.0,96639.0,0.05272]
[1732931593365,0.06572,96640.0,96639.0,0.05272]
[1732931593802,0.06572,96640.0,96639.0,0.41352]
[1732931594165,0.06572,96640.0,96639.0,0.3618]
[1732931595375,0.06572,96640.0,96639.0,0.001]
[1732931596369,0.06572,96640.0,96614.0,0.3608]
[1732931596370,0.014,96640.0,96622.0,0.3608]
[1732931596662,0.051729,96623.0,96622.0,0.3608]
[1732931598264,0.054729,96623.0,96622.0,0.3608]
[1732931599086,0.055729,96623.0,96622.0,0.3608]
[1732931599570,0.051731,96619.0,96618.0,0.05328331]
[1732931599967,0.051731,96619.0,96618.0,0.00155231]
[1732931600371,0.05180379,96619.0,96618.0,0.00155231]
[1732931601374,0.05280379,96619.0,96618.0,0.00155231]
[1732931602366,0.05380379,96619.0,96618.0,0.00155231]
[1732931603077,0.06600906,96619.0,96618.0,0.00155231]
[1732931606673,0.42680906,96619.0,96618.0,0.00155231]
[1732931610878,0.051736,96610.0,96609.0,9.371e-05]
[1732931612171,0.051736,96610.0,96609.0,0.00409371]
[1732931612977,0.23598917,96610.0,96609.0,0.00409371]
[1732931613179,0.051736,96610.0,96609.0,0.00409371]
[1732931623983,0.06400906,96619.0,96613.0,0.051733]
[1732931623984,0.051734,96614.0,96613.0,0.051733]
[1732931624505,0.01227806,96619.0,96609.0,0.00409371]
[1732931624686,0.051735,96612.0,96609.0,0.00409371]
[1732931624882,0.01227806,96619.0,96609.0,0.00409371]
[1732931624883,0.051736,96610.0,96609.0,0.00409371]
[1732931625086,0.051736,96610.0,96609.0,0.00209371]
[1732931625291,0.051736,96610.0,96609.0,0.05182971]
[1732931625490,0.051734,96614.0,96613.0,0.051733]
[1732931625688,0.051734,96614.0,96609.0,9.371e-05]
[1732931625689,0.01227806,96619.0,96618.0,0.051732]
[1732931625895,0.00155305,96630.0,96629.0,0.051726]
[1732931626087,0.05327805,96630.0,96629.0,0.412526]
[1732931626283,0.00155305,96630.0,96629.0,0.412526]
[1732931626898,0.00163177,96630.0,96629.0,0.412526]
[1732931628189,0.01163177,96630.0,96629.0,0.413526]
[1732931628890,0.01163177,96630.0,96629.0,0.3618]
[1732931628891,0.02414063,96630.0,96629.0,0.3618]
[1732931629092,0.01163177,96630.0,96629.0,0.3618]
[1732931632588,0.01163177,96630.0,96629.0,0.413526]
[1732931632589,0.02374492,96630.0,96629.0,0.413526]
[1732931637397,0.01163177,96630.0,96629.0,0.413526]
[1732931637597,0.01163177,96630.0,96629.0,0.3618]
[1732931637792,0.01163177,96630.0,96629.0,0.001]
[1732931638999,0.06335677,96630.0,96629.0,0.001]
[1732931644595,0.01163177,96630.0,96629.0,0.052726]
[1732931646306,0.05172,96640.0,96639.0,0.05172]
[1732931647004,0.3608,96643.0,96629.0,0.001]
[1732931647198,0.00012044,96634.0,96629.0,0.001]
[1732931647599,0.00012044,96634.0,96633.0,0.051724]
[1732931648195,0.00312044,96634.0,96633.0,0.051724]
[1732931648604,0.01012044,96634.0,96633.0,0.051724]
[1732931649845,0.00312044,96634.0,96633.0,0.051724]
[1732931649996,0.00312044,96634.0,96633.0,0.052724]
[1732931650898,0.00312044,96634.0,96633.0,0.413524]
[1732931663607,0.21913295,96634.0,96633.0,0.413524]
[1732931663917,0.00312044,96634.0,96633.0,0.413524]
[1732931664917,0.21913295,96634.0,96633.0,0.413524]
[1732931665317,0.00312044,96634.0,96633.0,0.413524]
[1732931670432,0.00312044,96634.0,96633.0,0.41675918]
[1732931671023,0.00312044,96634.0,96633.0,0.413524]
[1732931671423,0.00312044,96634.0,96633.0,0.41675916]
[1732931671931,0.00312044,96634.0,96633.0,0.413524]
[1732931672528,0.00312044,96634.0,96633.0,0.60277635]
[1732931673031,0.00155241,96660.0,96633.0,0.3618]
[1732931673232,0.00155241,96660.0,96659.0,0.05171]
[1732931674236,0.00267914,96660.0,96659.0,0.05171]
[1732931674531,0.00267914,96660.0,96659.0,0.06071]
[1732931674933,0.00267914,96660.0,96659.0,0.05171]
[1732931675134,0.00567914,96660.0,96659.0,0.05271]
[1732931676542,0.00867914,96660.0,96659.0,0.05271]
[1732931676729,0.01215791,96670.0,96659.0,0.05171]
[1732931676931,0.01215791,96670.0,96669.0,0.412504]
[1732931677743,0.051699,96680.0,96679.0,0.051699]
[1732931678139,0.0518077,96680.0,96679.0,0.051699]
[1732931679834,0.051704,96670.0,96669.0,0.001]
[1732931680139,0.051711,96657.0,96650.0,0.3608]
[1732931680381,0.24687144,96657.0,96650.0,0.3608]
[1732931680641,0.24687144,96657.0,96656.0,0.412511]
[1732931680642,0.32367342,96657.0,96656.0,0.412511]
[1732931680946,0.07680421,96657.0,96656.0,0.412511]
[1732931682441,0.24687144,96664.0,96663.0,0.051708]
[1732931682643,0.051705,96669.0,96666.0,0.051706]
[1732931682845,0.28877459,96670.0,96656.0,0.3608]
[1732931682846,0.07686997,96668.0,96656.0,0.3608]
[1732931683038,0.07686997,96668.0,96639.0,0.3608]
[1732931683039,0.05172,96640.0,96639.0,0.3608]
[1732931683561,0.07698769,96640.0,96639.0,0.3608]
[1732931683843,0.07698769,96640.0,96639.0,0.41252]
[1732931684748,0.07698769,96640.0,96639.0,0.3618]
[1732931684749,0.07898769,96640.0,96639.0,0.3618]
[1732931684934,0.08398769,96640.0,96639.0,0.3618]
[1732931685931,0.08398769,96640.0,96639.0,0.3608]
[1732931686131,0.08398769,96640.0,96639.0,0.3618]
[1732931686775,0.08384651,96640.0,96639.0,0.3618]
[1732931688049,0.007,96640.0,96639.0,0.3618]
[1732931688456,0.007,96640.0,96622.0,0.18601723]
[1732931688457,0.051729,96623.0,96622.0,0.18601723]
[1732931688640,0.051731,96620.0,96619.0,0.00155225]
[1732931690854,0.05184049,96620.0,96619.0,0.00155225]
[1732931691065,0.31226626,96620.0,96582.0,0.18201723]
[1732931691351,0.051752,96580.0,96579.0,0.00052]
[1732931691544,0.05175,96584.0,96578.0,0.051753]
[1732931692058,0.051752,96581.0,96578.0,0.051753]
[1732931692245,0.3608,96589.0,96576.0,0.00013174]
[1732931692246,0.051753,96578.0,96576.0,0.00013174]
[1732931693550,0.051753,96578.0,96576.0,0.00213174]
[1732931696447,0.051753,96578.0,96576.0,0.00113174]
[1732931698857,0.051753,96578.0,96576.0,0.05288574]
[1732931701549,0.3608,96589.0,96576.0,0.00113174]
[1732931701753,0.05175,96584.0,96582.0,0.05175]
[1732931702960,0.3608,96589.0,96587.0,0.051748]
[1732931703162,0.3608,96589.0,96588.0,0.0324]
[1732931703971,0.00041601,96600.0,96594.0,0.051744]
[1732931703972,0.051744,96595.0,96594.0,0.051744]
[1732931705582,0.059744,96595.0,96594.0,0.052744]
[1732931706355,0.012,96595.0,96594.0,0.052744]
[1732931708165,0.051741,96601.0,96594.0,0.001]
[1732931708477,0.051741,96601.0,96600.0,0.051741]
[1732931709371,0.055741,96601.0,96600.0,0.051741]
[1732931710074,0.063741,96601.0,96600.0,0.052741]
[1732931710567,0.059741,96601.0,96600.0,0.052741]
[1732931710773,0.064741,96601.0,96600.0,0.052741]
[1732931719163,0.013,96601.0,96600.0,0.052741]
[1732931719432,0.013,96601.0,96600.0,0.05597738]
[1732931721269,0.013,96601.0,96600.0,0.06115557]
[1732931721576,0.00155298,96615.0,96614.0,0.051734]
[1732931721767,0.00155298,96615.0,96614.0,0.05497038]
[1732931722668,0.00255298,96615.0,96614.0,0.06397038]
[1732931723064,0.00255298,96615.0,96614.0,0.06497038]
[1732931723372,0.00355298,96615.0,96614.0,0.06497038]
[1732931724468,0.00255298,96615.0,96614.0,0.05597038]
[1732931724674,0.006,96615.0,96614.0,0.05597038]
[1732931724880,0.01213147,96620.0,96614.0,0.05597038]
[1732931724881,0.00010949,96620.0,96614.0,0.05597038]
[1732931725068,0.00010949,96620.0,96619.0,0.051731]
[1732931725271,0.00010949,96620.0,96619.0,0.05496738]
[1732931725479,0.3608,96629.0,96628.0,0.051726]
[1732931725871,0.00155261,96635.0,96634.0,0.051723]
[1732931726568,0.00163485,96635.0,96634.0,0.051723]
[1732931726970,0.01403872,96635.0,96634.0,0.051723]
[1732931727183,0.00163485,96635.0,96634.0,0.051723]
[1732931728381,0.00163485,96635.0,96628.0,0.37036]
[1732931728382,0.051726,96629.0,96628.0,0.01856]
[1732931728571,0.051726,96629.0,96628.0,0.018]
[1732931728769,0.051726,96629.0,96619.0,0.3608]
[1732931728970,0.051731,96620.0,96619.0,0.3608]
[1732931729378,0.051726,96629.0,96611.0,0.0618]
[1732931729379,0.051733,96616.0,96611.0,0.0618]
[1732931729679,0.051733,96616.0,96608.0,0.00155244]
[1732931729680,0.051736,96609.0,96608.0,0.00155244]
[1732931733974,0.06419379,96609.0,96608.0,0.00155244]
[1732931735088,0.27969506,96609.0,96608.0,0.00155244]
[1732931736297,0.06419379,96609.0,96608.0,0.00155244]
[1732931736886,0.01245779,96609.0,96608.0,0.051737]
[1732931737075,0.01245779,96609.0,96598.0,0.0624]
[1732931737076,0.051733,96616.0,96615.0,0.051733]
[1732931738383,0.02071324,96621.0,96620.0,0.051731]
[1732931738571,0.15690041,96621.0,96620.0,0.051731]
[1732931738976,0.08445717,96621.0,96620.0,0.051731]
[1732931739273,0.21557468,96625.0,96623.0,0.051729]
[1732931739472,0.21557468,96628.0,96626.0,0.051727]
[1732931739680,0.051725,96631.0,96624.0,0.0649]
[1732931739681,0.21557468,96629.0,96624.0,0.0649]
[1732931740384,0.08432851,96630.0,96629.0,0.051726]
[1732931740385,0.051725,96630.0,96629.0,0.051726]
[1732931743489,0.051725,96630.0,96629.0,0.052726]
[1732931744080,0.051725,96630.0,96629.0,0.001]
[1732931747289,0.051725,96630.0,96629.0,0.052726]
[1732931749092,0.3608,96633.0,96632.0,0.051724]
[1732931749289,0.01256836,96634.0,96630.0,0.0315]
[1732931749590,0.36164,96645.0,96630.0,0.0315]
[1732931749591,0.3608,96645.0,96634.0,0.051723]
[1732931749790,0.3608,96655.0,96630.0,0.0315]
[1732931749791,0.051716,96648.0,96635.0,0.051722]
[1732931749985,0.051716,96647.0,96638.0,0.3608]
[1732931750185,0.051717,96646.0,96636.0,0.051722]
[1732931750394,0.3608,96655.0,96647.0,0.051716]
[1732931750395,0.051716,96648.0,96647.0,0.051716]
[1732931750897,0.05182442,96648.0,96647.0,0.051716]
[1732931752184,0.05182442,96648.0,96647.0,0.052716]
[1732931753099,0.00010842,96648.0,96647.0,0.052716]
[1732931753293,0.05182442,96648.0,96647.0,0.052716]
[1732931753888,0.00010842,96648.0,96647.0,0.052716]
[1732931756095,0.085113,96648.0,96647.0,0.052716]
[1732931756988,0.136829,96648.0,96647.0,0.052716]
[1732931757392,0.29799059,96648.0,96647.0,0.052716]
[1732931757597,0.136829,96648.0,96647.0,0.052716]
[1732931758203,0.085113,96648.0,96647.0,0.052716]
[1732931758483,0.24627006,96648.0,96647.0,0.052716]
[1732931758897,0.33127464,96648.0,96647.0,0.052716]
[1732931759592,0.085113,96648.0,96647.0,0.052716]
[1732931761108,0.136829,96648.0,96647.0,0.052716]
[1732931761599,0.38299064,96648.0,96647.0,0.052716]
[1732931762762,0.05182442,96648.0,96647.0,0.052716]
[1732931764395,0.05182442,96648.0,96647.0,0.001]
[1732931766291,0.26746638,96648.0,96647.0,0.001]
[1732931766593,0.13502224,96648.0,96647.0,0.001]
[1732931767598,0.38118388,96648.0,96647.0,0.001]
[1732931767795,0.13502224,96648.0,96647.0,0.001]
[1732931768397,0.38118388,96648.0,96647.0,0.001]
[1732931769396,0.13502224,96648.0,96647.0,0.001]
[1732931771296,0.1351711,96648.0,96647.0,0.001]
[1732931771998,0.36017737,96648.0,96647.0,0.001]
[1732931772301,0.44352625,96648.0,96647.0,0.001]
[1732931772504,0.44356362,96648.0,96647.0,0.052716]
[1732931772702,0.1351711,96648.0,96647.0,0.052716]
[1732931773304,0.32939985,96648.0,96647.0,0.052716]
[1732931773501,0.32941538,96648.0,96647.0,0.052716]
[1732931773700,0.36104606,96648.0,96647.0,0.052716]
[1732931773900,0.09526662,96652.0,96647.0,0.001]
[1732931774201,0.24676512,96653.0,96652.0,0.051713]
[1732931774407,0.24676512,96654.0,96653.0,0.051713]
[1732931774597,0.29847612,96656.0,96647.0,0.001]
[1732931774795,0.29847612,96656.0,96655.0,0.051712]
[1732931774993,0.2985844,96656.0,96655.0,0.051712]
[1732931776596,0.2985844,96656.0,96655.0,0.060712]
[1732931777407,0.05181928,96656.0,96655.0,0.060712]
[1732931777915,0.00010828,96656.0,96655.0,0.060712]
[1732931778112,0.00010828,96656.0,96655.0,0.421512]
[1732931778309,0.051705,96668.0,96667.0,0.051703]
[1732931778999,0.051705,96668.0,96667.0,0.0326]
[1732931779197,0.051711,96657.0,96656.0,0.051711]
[1732931779403,0.05178707,96657.0,96656.0,0.0326]
[1732931780718,0.05178707,96657.0,96656.0,0.084311]
[1732931781914,0.05178707,96657.0,96645.0,0.42362]
[1732931782209,0.05178707,96657.0,96645.0,0.3921]
[1732931782210,0.051717,96646.0,96645.0,0.3921]
[1732931782407,0.051717,96646.0,96645.0,0.443817]
[1732931782913,0.051717,96646.0,96645.0,0.083017]
[1732931783411,0.051717,96646.0,96645.0,0.0313]
[1732931783715,0.051717,96646.0,96645.0,0.0323]
[1732931785105,0.051717,96646.0,96645.0,0.001]
[1732931785307,0.3608,96652.0,96644.0,0.00010133]
[1732931785308,0.051717,96645.0,96644.0,0.00010133]
[1732931785608,0.13132983,96645.0,96644.0,0.00010133]
[1732931786616,0.13132983,96645.0,96644.0,0.05181933]
[1732931786931,0.58587926,96647.0,96644.0,0.00010133]
[1732931787224,0.24670453,96650.0,96649.0,0.051715]
[1732931787424,0.24670453,96651.0,96650.0,0.051714]
[1732931787724,0.24670453,96652.0,96651.0,0.051714]
[1732931788408,0.29841753,96652.0,96651.0,0.051714]
[1732931788819,0.24670453,96652.0,96651.0,0.051714]
[1732931789220,0.29841753,96652.0,96651.0,0.052714]
[1732931790518,0.24670453,96652.0,96651.0,0.052714]
[1732931791618,0.24670453,96653.0,96651.0,0.001]
[1732931791813,0.24670453,96653.0,96652.0,0.051713]
[1732931791814,0.29841753,96653.0,96652.0,0.051713]
[1732931792309,0.051713,96653.0,96652.0,0.051713]
[1732931793018,0.0120168,96655.0,96654.0,0.051712]
[1732931793217,7.607e-05,96657.0,96651.0,0.001]
[1732931793514,0.051712,96656.0,96655.0,0.051711]
[1732931794513,0.051713,96653.0,96652.0,0.052713]
[1732931794909,0.051713,96653.0,96652.0,0.051713]
[1732931795509,7.607e-05,96657.0,96649.0,0.3608]
[1732931795717,0.01224608,96657.0,96656.0,0.051711]
[1732931795919,7.607e-05,96657.0,96656.0,0.051711]
[1732931796516,0.05178707,96657.0,96656.0,0.051711]
[1732931798313,0.05178707,96657.0,96656.0,0.052711]
[1732931798520,7.607e-05,96657.0,96656.0,0.052711]
[1732931801521,0.25599187,96659.0,96656.0,0.052711]
[1732931801721,0.09523639,96664.0,96663.0,0.051708]
[1732931801912,0.30839252,96669.0,96668.0,0.051705]
[1732931802126,0.14693639,96677.0,96668.0,0.051705]
[1732931802127,0.30839252,96674.0,96668.0,0.051705]
[1732931802427,0.30839252,96676.0,96675.0,0.051701]
[1732931802618,0.00013237,96676.0,96675.0,0.051701]
[1732931803722,0.00013237,96676.0,96675.0,0.060701]
[1732931805028,0.00013237,96676.0,96675.0,0.069701]
[1732931814637,0.00013237,96676.0,96675.0,0.061701]
[1732931814831,0.00013237,96676.0,96675.0,0.052701]
[1732931816934,0.05183337,96676.0,96675.0,0.052701]
[1732931821157,0.06436633,96676.0,96675.0,0.001]
[1732931822745,0.37275885,96676.0,96675.0,0.001]
[1732931822940,0.44874299,96676.0,96675.0,0.001]
[1732931824846,0.14035047,96676.0,96675.0,0.001]
[1732931829851,0.50115047,96676.0,96675.0,0.001]
[1732931830037,0.59639143,96676.0,96675.0,0.001]
[1732931830650,0.52040729,96676.0,96675.0,0.001]
[1732931830945,0.42516633,96676.0,96675.0,0.001]
[1732931832045,0.44586813,96676.0,96675.0,0.001]
[1732931833041,0.44586813,96676.0,96645.0,0.0323]
[1732931833042,0.39416713,96676.0,96645.0,0.0323]
[1732931833251,0.39416713,96676.0,96644.0,0.00010133]
[1732931833252,0.051717,96645.0,96644.0,0.00010133]
[1732931836158,0.051717,96645.0,96644.0,0.00610133]
[1732931836952,0.051717,96645.0,96644.0,0.01110133]
[1732931837445,0.051717,96645.0,96644.0,0.00610133]
[1732931837647,0.057717,96645.0,96644.0,0.00010133]
[1732931840553,0.06987921,96645.0,96644.0,0.00010133]
[1732931842656,0.06987921,96645.0,96644.0,0.05181933]
[1732931842657,0.057717,96645.0,96644.0,0.05181933]
[1732931863866,0.13371431,96645.0,96644.0,0.05181933]
[1732931867879,0.057717,96645.0,96644.0,0.05181933]
[1732931870171,0.006,96645.0,96644.0,0.05181933]
[1732931870475,0.006,96645.0,96644.0,0.41585416]
[1732931870777,0.72074555,96671.0,96644.0,0.4210295]
[1732931870778,0.3608,96671.0,96644.0,0.4210295]
[1732931870973,0.00084,96671.0,96670.0,0.051704]
[1732931871172,0.01220737,96672.0,96671.0,0.051703]
[1732931871369,0.01220737,96672.0,96671.0,0.412503]
[1732931871674,0.00013237,96676.0,96675.0,0.051701]
[1732931873282,0.00813237,96676.0,96675.0,0.052701]
[1732931876579,0.05983337,96676.0,96675.0,0.052701]
[1732931878685,0.05983337,96676.0,96675.0,0.06472789]
[1732931879587,0.00813237,96676.0,96675.0,0.06472789]
[1732931880276,0.05983337,96676.0,96675.0,0.06472789]
[1732931880473,0.05983337,96676.0,96675.0,0.052701]
[1732931884293,0.00813237,96676.0,96675.0,0.052701]
[1732931888097,0.42104938,96676.0,96663.0,0.00052]
[1732931888388,0.3608,96664.0,96652.0,0.3608]
[1732931888704,0.3608,96664.0,96654.0,0.051712]
[1732931888888,0.051712,96656.0,96654.0,0.051712]
[1732931889078,0.3608,96664.0,96657.0,0.05171]
[1732931889383,0.3608,96664.0,96654.0,0.051712]
[1732931889384,0.051711,96656.0,96654.0,0.051712]
[1732931889989,0.051711,96656.0,96654.0,0.053712]
[1732931890187,0.051711,96656.0,96655.0,0.051712]
[1732931890582,0.051711,96656.0,96624.0,0.18780813]
[1732931890583,0.3608,96656.0,96624.0,0.18780813]
[1732931890783,0.3608,96633.0,96632.0,0.051724]
[1732931891692,0.3608,96633.0,96632.0,0.05185811]
[1732931891894,0.3608,96633.0,96632.0,0.05785811]
[1732931892787,0.3608,96633.0,96632.0,0.05885811]
[1732931893104,0.3608,96633.0,96615.0,0.3608]
[1732931893105,0.6608,96633.0,96615.0,0.3608]
[1732931893390,0.6608,96633.0,96617.0,0.051732]
[1732931893391,0.051731,96620.0,96617.0,0.051732]
[1732931893694,0.051731,96620.0,96615.0,0.3608]
[1732931893695,0.3608,96625.0,96615.0,0.3608]
[1732931893892,0.3608,96625.0,96608.0,0.051737]
[1732931894114,0.3608,96625.0,96603.0,0.3608]
[1732931894115,0.051734,96614.0,96603.0,0.3608]
[1732931894392,0.051734,96614.0,96611.0,0.051735]
[1732931894694,0.051734,96614.0,96612.0,0.051735]
[1732931895198,0.00041601,96613.0,96604.0,9.095e-05]
[1732931895398,0.05174,96603.0,96587.0,0.051748]
[1732931895589,0.05174,96603.0,96583.0,0.3608]
[1732931895590,0.051744,96595.0,96583.0,0.3608]
[1732931895891,0.051744,96595.0,96590.0,0.051746]
[1732931896394,0.051746,96591.0,96583.0,0.3608]
[1732931896595,0.3608,96596.0,96590.0,0.051747]
[1732931897688,0.3608,96596.0,96584.0,0.00012514]
[1732931897996,0.3608,96596.0,96593.0,0.051745]
[1732931899691,0.3618,96596.0,96593.0,0.051745]
[1732931899887,0.3618,96596.0,96594.0,0.0311]
[1732931900289,0.3618,96596.0,96595.0,0.051744]
[1732931900491,0.3608,96605.0,96603.0,0.05174]
[1732931900688,0.3608,96605.0,96604.0,0.032]
[1732931900890,0.3108,96605.0,96604.0,0.0639]
[1732931902597,0.3128,96605.0,96604.0,0.0639]
[1732931902798,0.002,96605.0,96604.0,0.0639]
[1732931902993,0.002,96605.0,96604.0,0.0649]
[1732931903299,7.248e-05,96613.0,96612.0,0.051735]
[1732931904701,0.00107248,96613.0,96612.0,0.051735]
[1732931905493,0.00207248,96613.0,96612.0,0.051735]
[1732931906717,0.001,96613.0,96609.0,0.3608]
[1732931906904,0.001,96613.0,96612.0,0.051735]
[1732931907496,0.42455019,96627.0,96626.0,0.051727]
[1732931907698,0.42466991,96627.0,96626.0,0.051727]
[1732931908904,0.42966991,96627.0,96626.0,0.051727]
[1732931910401,0.42966991,96627.0,96590.0,0.54705584]
[1732931910402,0.051734,96613.0,96590.0,0.54705584]
[1732931910602,0.051741,96600.0,96594.0,0.0331]
[1732931911400,0.051741,96600.0,96598.0,0.051742]
[1732931912504,0.351741,96600.0,96599.0,0.3297]
[1732931912697,0.351741,96600.0,96584.0,0.00012514]
[1732931912698,0.051754,96576.0,96567.0,0.051759]
[1732931912897,0.6608,96600.0,96568.0,0.051758]
[1732931912898,0.3608,96574.0,96568.0,0.051758]
[1732931913298,0.3608,96574.0,96564.0,0.00425373]
[1732931913600,0.3608,96574.0,96565.0,0.05176]
[1732931913905,0.3608,96574.0,96570.0,0.00013021]
[1732931914498,0.3608,96574.0,96573.0,0.005]
[1732931914698,0.3608,96574.0,96573.0,0.001]
[1732931914699,0.6608,96574.0,96573.0,0.001]
[1732931914892,0.6608,96574.0,96551.0,0.58714765]
[1732931914893,0.051767,96553.0,96551.0,0.58714765]
[1732931915098,0.3608,96552.0,96551.0,0.58714765]
[1732931915906,0.3608763,96552.0,96551.0,0.58714765]
[1732931916403,0.2608763,96552.0,96551.0,0.31056]
[1732931917802,0.3608,96561.0,96551.0,0.002]
[1732931918111,0.3608,96561.0,96559.0,0.051763]
[1732931918371,0.3608,96561.0,96560.0,0.31056]
[1732931918502,0.3608,96574.0,96560.0,0.31481373]
[1732931918709,0.3608,96574.0,96551.0,0.002]
[1732931918710,0.3608,96574.0,96573.0,0.051756]
[1732931918902,0.36087352,96574.0,96573.0,0.051756]
[1732931920211,0.37187352,96574.0,96573.0,0.363316]
[1732931921412,0.37187352,96574.0,96573.0,0.36655344]
[1732931921912,0.15431717,96574.0,96573.0,0.36655344]
[1732931922216,0.14731717,96574.0,96573.0,0.36555344]
[1732931922510,0.14431717,96574.0,96573.0,0.36555344]
[1732931922710,0.14531717,96574.0,96573.0,0.36555344]
[1732931923008,0.14431717,96574.0,96573.0,0.36555344]
[1732931923313,0.14331717,96574.0,96573.0,0.36555344]
[1732931923811,0.14431717,96574.0,96573.0,0.36555344]
[1732931925016,0.00107352,96574.0,96573.0,0.37073312]
[1732931925204,0.3608,96597.0,96584.0,0.05175]
[1732931925409,0.051749,96587.0,96585.0,0.00841659]
[1732931925601,0.051749,96587.0,96586.0,0.00841659]
[1732931926222,0.05185633,96587.0,96586.0,0.00841659]
[1732931926415,0.05185633,96587.0,96586.0,0.00841584]
[1732931926864,0.05285633,96587.0,96586.0,0.00841584]
[1732931928514,0.05285633,96587.0,96585.0,0.051749]
[1732931928515,0.051749,96586.0,96585.0,0.051749]
[1732931929021,0.00610733,96587.0,96586.0,0.051749]
[1732931929310,0.05785533,96587.0,96586.0,0.362309]
[1732931929515,0.05285533,96587.0,96586.0,0.362309]
[1732931930214,0.05185533,96587.0,96586.0,0.362309]
[1732931930517,0.05285533,96587.0,96586.0,0.362309]
[1732931930811,0.05285533,96587.0,96586.0,0.363309]
[1732931932014,0.05185533,96587.0,96586.0,0.363309]
[1732931932206,0.05185533,96587.0,96586.0,0.362309]
[1732931935813,0.05185533,96587.0,96494.0,0.80348491]
[1732931936126,0.05185533,96587.0,96460.0,0.3419]
[1732931936127,0.15354871,96558.0,96548.0,0.00063176]
[1732931936419,0.3608,96549.0,96548.0,0.05188076]
[1732931936719,0.15354871,96553.0,96548.0,0.00334965]
[1732931936922,0.59682146,96559.0,96548.0,0.00334965]
[1732931936923,0.15354871,96555.0,96549.0,0.00323789]
[1732931937225,0.15354871,96556.0,96554.0,0.059766]
[1732931937421,0.15354871,96559.0,96556.0,0.051765]
[1732931937624,0.15354871,96562.0,96557.0,0.0084182]
[1732931937811,0.15354871,96563.0,96561.0,0.051762]
[1732931938014,0.15396472,96564.0,96554.0,0.008]
[1732931938215,0.15396472,96564.0,96538.0,0.01287293]
[1732931938216,0.051769,96549.0,96538.0,0.01287293]
[1732931938439,0.46393082,96549.0,96548.0,0.00811176]
[1732931938918,0.64730886,96549.0,96548.0,0.00011176]
[1732931939220,0.59553986,96549.0,96548.0,0.00011176]
[1732931939421,0.41116182,96549.0,96548.0,0.00011176]
[1732931940336,0.41116182,96549.0,96525.0,0.07249666]
[1732931940337,0.051779,96530.0,96525.0,0.051781]
[1732931940619,0.051779,96530.0,96520.0,0.00085701]
[1732931940620,0.15369016,96528.0,96520.0,0.00085701]
[1732931940923,0.05178,96529.0,96527.0,0.05178]
[1732931941118,0.05037037,96528.0,96527.0,0.05178]
[1732931941311,0.05037037,96528.0,96523.0,9.774e-05]
[1732931941312,0.10215037,96528.0,96523.0,9.774e-05]
[1732931941513,0.15364045,96527.0,96523.0,9.774e-05]
[1732931941842,0.05178,96528.0,96526.0,0.00755402]
[1732931941843,0.05278,96528.0,96526.0,0.00755402]
[1732931942131,0.3608,96536.0,96527.0,0.3608]
[1732931942319,0.05036788,96535.0,96534.0,0.051777]
[1732931942517,0.05036721,96535.0,96534.0,0.051777]
[1732931943122,0.18442819,96545.0,96544.0,0.051771]
[1732931943325,0.18442819,96545.0,96527.0,0.3608]
[1732931943326,0.18442819,96546.0,96527.0,0.3608]
[1732931943540,0.05178,96529.0,96528.0,0.0064765]
[1732931943819,0.05178,96529.0,96526.0,0.00355402]
[1732931943820,0.05178,96529.0,96526.0,0.05533502]
[1732931944022,0.05037203,96528.0,96526.0,0.05533502]
[1732931944224,0.05037203,96528.0,96526.0,0.00355402]
[1732931944225,0.05178,96528.0,96526.0,0.00355402]
[1732931944624,0.05178,96528.0,96526.0,0.00155402]
[1732931945115,0.05178,96528.0,96526.0,0.05333502]
[1732931945321,0.05178,96528.0,96527.0,0.001]
[1732931945929,0.05178,96528.0,96526.0,0.05533502]
[1732931946125,0.05178,96528.0,96527.0,0.0331]
[1732931946827,0.031,96548.0,96527.0,0.0331]
[1732931946828,0.051773,96541.0,96527.0,0.0331]
[1732931947032,0.051773,96541.0,96537.0,0.051775]
[1732931947216,0.3608,96549.0,96537.0,0.051775]
[1732931947422,0.05177,96546.0,96537.0,0.051775]
[1732931947830,0.3108,96538.0,96537.0,0.051775]
[1732931948140,0.3118,96538.0,96537.0,0.051775]
[1732931948531,0.3108,96538.0,96537.0,0.051775]
[1732931948735,0.001,96538.0,96537.0,0.412575]
[1732931948946,0.001,96538.0,96537.0,0.41775616]
[1732931949337,0.003,96538.0,96537.0,0.41775616]
[1732931950081,0.3608,96549.0,96548.0,0.051769]
[1732931951638,0.3678,96549.0,96548.0,0.052769]
[1732931951834,0.3728,96549.0,96548.0,0.052769]
[1732931955369,0.3728,96549.0,96548.0,0.001]
[1732931958647,0.424569,96549.0,96548.0,0.052769]
[1732931959648,0.3728,96549.0,96548.0,0.052769]
[1732931959839,0.012,96549.0,96548.0,0.413569]
[1732931961547,0.02072255,96564.0,96563.0,0.051761]